[Event "*** Titled Tuesday Blitz"]
[Site "Chess.com"]
[Date "2021.04.20"]
[Round "3"]
[White "Artyom_ChessMate"]
[Black "Andrii_Prydun"]
[Result "1-0"]
[WhiteElo "2545"]
[BlackElo "2336"]
[TimeControl "180+1"]
[EndTime "10:27:06 PDT"]
[Termination "Artyom_ChessMate won by resignation"]

1. e4 {[%clk 0:03:00.9]} 1... d5 {[%clk 0:02:59.7]} 2. exd5 {[%clk 0:03:00.4]}
2... Qxd5 {[%clk 0:03:00.6]} 3. Nf3 {[%clk 0:03:00.8]} 3... Bg4 {[%clk
0:02:54.2]} 4. Be2 {[%clk 0:03:00.7]} 4... Nc6 {[%clk 0:02:53.2]} 5. h3 {[%clk
0:02:59.7]} 5... Bh5 {[%clk 0:02:51.9]} 6. d4 {[%clk 0:02:58.8]} 6... O-O-O
{[%clk 0:02:50.4]} 7. c4 {[%clk 0:02:59]} 7... Qd6 {[%clk 0:02:32.3]} 8. d5
{[%clk 0:02:56.2]} 8... Ne5 {[%clk 0:02:28.9]} 9. Nxe5 {[%clk 0:02:44.4]} 9...
Qxe5 {[%clk 0:02:27.7]} 10. g4 {[%clk 0:02:45.3]} 10... Bg6 {[%clk 0:02:26.7]}
11. f4 {[%clk 0:02:45.6]} 11... Qe4 {[%clk 0:02:26.4]} 12. O-O {[%clk
0:02:38.9]} 12... e6 {[%clk 0:01:56.2]} 13. Nc3 {[%clk 0:02:36]} 13... Bc5+
{[%clk 0:01:56]} 14. Kh2 {[%clk 0:02:35.9]} 14... Qd4 {[%clk 0:01:55.4]} 15. f5
{[%clk 0:02:26]} 15... exf5 {[%clk 0:01:25]} 16. Qxd4 {[%clk 0:02:24.4]} 16...
Bxd4 {[%clk 0:01:24.4]} 17. gxf5 {[%clk 0:02:25.3]} 17... Re8 {[%clk 0:00:37]}
18. Bg4 {[%clk 0:01:52.1]} 18... Nf6 {[%clk 0:00:36.5]} 19. fxg6+ {[%clk
0:01:50.7]} 19... Nxg4+ {[%clk 0:00:37]} 20. hxg4 {[%clk 0:01:51.6]} 20... hxg6+
{[%clk 0:00:37.3]} 21. Kg2 {[%clk 0:01:52.2]} 21... Bxc3 {[%clk 0:00:31.2]} 22.
bxc3 {[%clk 0:01:53.1]} 22... Re2+ {[%clk 0:00:30.9]} 23. Rf2 {[%clk 0:01:50.5]}
23... Rh2+ {[%clk 0:00:30.5]} 24. Kxh2 {[%clk 0:01:50.4]} 24... Rxf2+ {[%clk
0:00:31]} 25. Kg3 {[%clk 0:01:51.3]} 25... Rc2 {[%clk 0:00:16.3]} 26. Bf4 {[%clk
0:01:40.7]} 26... Rxc3+ {[%clk 0:00:16.7]} 27. Kf2 {[%clk 0:01:31.8]} 27... Rxc4
{[%clk 0:00:17.6]} 28. Kf3 {[%clk 0:01:32.3]} 28... Rc3+ {[%clk 0:00:11.2]} 29.
Ke2 {[%clk 0:01:32]} 29... Rc4 {[%clk 0:00:10.6]} 30. Ke3 {[%clk 0:01:32.5]}
30... f5 {[%clk 0:00:06.8]} 31. g5 {[%clk 0:01:28.2]} 31... Re4+ {[%clk
0:00:06.6]} 32. Kf3 {[%clk 0:01:28.4]} 32... Rc4 {[%clk 0:00:07.5]} 33. Rc1
{[%clk 0:01:26.6]} 33... Rxc1 {[%clk 0:00:04.5]} 34. Bxc1 {[%clk 0:01:27.5]}
34... Kd7 {[%clk 0:00:04.7]} 35. Bf4 {[%clk 0:01:25.5]} 35... c6 {[%clk
0:00:04.2]} 36. dxc6+ {[%clk 0:01:25.4]} 36... Kxc6 {[%clk 0:00:04.2]} 37. Be5
{[%clk 0:01:26.3]} 37... Kd5 {[%clk 0:00:04.4]} 38. Bxg7 {[%clk 0:01:26.1]}
38... Kc4 {[%clk 0:00:04.8]} 39. Ke3 {[%clk 0:01:22.8]} 39... Kd5 {[%clk
0:00:04.7]} 40. Kd3 {[%clk 0:01:21.8]} 40... Kc5 {[%clk 0:00:04.8]} 41. Bd4+
{[%clk 0:01:20.8]} 41... Kb4 {[%clk 0:00:04.6]} 42. Bxa7 {[%clk 0:01:21.7]}
42... Ka3 {[%clk 0:00:05]} 43. Bb6 {[%clk 0:01:12.7]} 43... Kxa2 {[%clk
0:00:05]} 44. Kd4 {[%clk 0:01:13.6]} 44... Kb3 {[%clk 0:00:04.8]} 45. Ke5 {[%clk
0:01:14.2]} 45... Kc4 {[%clk 0:00:05]} 46. Kf6 {[%clk 0:01:14.8]} 46... Kb5
{[%clk 0:00:04.9]} 47. Be3 {[%clk 0:01:14.9]} 47... Kc4 {[%clk 0:00:04.6]} 48.
Kxg6 {[%clk 0:01:15.3]} 48... Kd3 {[%clk 0:00:03.5]} 49. Kxf5 {[%clk 0:01:10.6]}
49... Kxe3 {[%clk 0:00:03.5]} 50. g6 {[%clk 0:01:11.2]} 1-0

[Event "*** Titled Tuesday Blitz"]
[Site "Chess.com"]
[Date "2021.04.20"]
[Round "3"]
[White "Piccadilly123"]
[Black "profofchess"]
[Result "0-1"]
[WhiteElo "2229"]
[BlackElo "2503"]
[TimeControl "180+1"]
[EndTime "10:27:09 PDT"]
[Termination "profofchess won by resignation"]

1. e4 {[%clk 0:03:00.9]} 1... e6 {[%clk 0:03:00.3]} 2. Nc3 {[%clk 0:03:00.1]}
2... d5 {[%clk 0:03:01.2]} 3. Nf3 {[%clk 0:03:00.6]} 3... Nf6 {[%clk 0:03:01.4]}
4. exd5 {[%clk 0:02:56.5]} 4... exd5 {[%clk 0:03:01]} 5. d4 {[%clk 0:02:56.6]}
5... Bg4 {[%clk 0:03:00.4]} 6. Bg5 {[%clk 0:02:54.8]} 6... c6 {[%clk 0:02:59.7]}
7. Be2 {[%clk 0:02:49.3]} 7... Bd6 {[%clk 0:02:57.5]} 8. O-O {[%clk 0:02:41.8]}
8... h6 {[%clk 0:02:57.5]} 9. Bh4 {[%clk 0:02:40.4]} 9... Nbd7 {[%clk
0:02:55.6]} 10. h3 {[%clk 0:02:40.4]} 10... Bh5 {[%clk 0:02:55.5]} 11. Re1
{[%clk 0:02:39.2]} 11... O-O {[%clk 0:02:55.1]} 12. Ne5 {[%clk 0:02:18.5]} 12...
Bxe2 {[%clk 0:02:52.9]} 13. Qxe2 {[%clk 0:01:54.1]} 13... Re8 {[%clk 0:02:49.8]}
14. f4 {[%clk 0:01:53.8]} 14... Qc7 {[%clk 0:02:44.5]} 15. Qf3 {[%clk
0:01:50.5]} 15... b5 {[%clk 0:02:31.1]} 16. Nd1 {[%clk 0:01:05.1]} 16... c5
{[%clk 0:02:14.5]} 17. Ne3 {[%clk 0:00:40.1]} 17... cxd4 {[%clk 0:02:01.9]} 18.
Nxd5 {[%clk 0:00:40.1]} 18... Nxd5 {[%clk 0:01:57.6]} 19. Qxd5 {[%clk 0:00:41]}
19... Nxe5 {[%clk 0:01:54.6]} 20. fxe5 {[%clk 0:00:40.1]} 20... Bxe5 {[%clk
0:01:46.2]} 21. Re2 {[%clk 0:00:19.1]} 21... Bh2+ {[%clk 0:01:17.6]} 22. Kf1
{[%clk 0:00:18.9]} 22... Qf4+ {[%clk 0:01:00]} 23. Bf2 {[%clk 0:00:17.2]} 23...
Rad8 {[%clk 0:00:52.3]} 24. Qxb5 {[%clk 0:00:14.2]} 24... Re3 {[%clk 0:00:30.5]}
25. Rae1 {[%clk 0:00:10.4]} 25... Bg3 {[%clk 0:00:11.6]} 26. Kg1 {[%clk
0:00:06.4]} 26... Bxf2+ {[%clk 0:00:11.2]} 27. Rxf2 {[%clk 0:00:06.5]} 27...
Rxe1+ {[%clk 0:00:11.4]} 28. Rf1 {[%clk 0:00:07.1]} 28... Qxf1+ {[%clk
0:00:10.2]} 29. Qxf1 {[%clk 0:00:08]} 29... Rxf1+ {[%clk 0:00:10.9]} 30. Kxf1
{[%clk 0:00:08.9]} 30... d3 {[%clk 0:00:10.7]} 0-1

[Event "*** Titled Tuesday Blitz"]
[Site "Chess.com"]
[Date "2021.04.20"]
[Round "3"]
[White "Zq1"]
[Black "Kopytkin"]
[Result "1-0"]
[WhiteElo "2550"]
[BlackElo "2358"]
[TimeControl "180+1"]
[EndTime "10:27:12 PDT"]
[Termination "Zq1 won by resignation"]

1. d4 {[%clk 0:03:00.9]} 1... Nf6 {[%clk 0:02:25.7]} 2. c4 {[%clk 0:03:00.3]}
2... g6 {[%clk 0:02:25.1]} 3. Nc3 {[%clk 0:02:59.4]} 3... Bg7 {[%clk 0:02:25]}
4. e4 {[%clk 0:02:58.9]} 4... d6 {[%clk 0:02:25]} 5. Nf3 {[%clk 0:02:59]} 5...
O-O {[%clk 0:02:24.7]} 6. Be2 {[%clk 0:02:59.2]} 6... e5 {[%clk 0:02:25]} 7. O-O
{[%clk 0:02:59]} 7... Nc6 {[%clk 0:02:23.8]} 8. d5 {[%clk 0:02:58.3]} 8... Nb8
{[%clk 0:02:24]} 9. Be3 {[%clk 0:02:52.3]} 9... a5 {[%clk 0:02:23.8]} 10. Nd2
{[%clk 0:02:51.4]} 10... Na6 {[%clk 0:02:23]} 11. a3 {[%clk 0:02:47.3]} 11...
Nc5 {[%clk 0:01:48.5]} 12. b4 {[%clk 0:02:42.3]} 12... axb4 {[%clk 0:01:48.5]}
13. axb4 {[%clk 0:02:42]} 13... Rxa1 {[%clk 0:01:49.1]} 14. Qxa1 {[%clk
0:02:42.1]} 14... Ncxe4 {[%clk 0:01:49.5]} 15. Ndxe4 {[%clk 0:02:38.7]} 15...
Nxe4 {[%clk 0:01:49.7]} 16. Nxe4 {[%clk 0:02:37.5]} 16... f5 {[%clk 0:01:50.3]}
17. Bd3 {[%clk 0:02:12.3]} 17... fxe4 {[%clk 0:01:47.4]} 18. Bxe4 {[%clk
0:02:12.3]} 18... Qh4 {[%clk 0:01:46.9]} 19. f3 {[%clk 0:02:06.1]} 19... Bh6
{[%clk 0:01:46.1]} 20. Bxh6 {[%clk 0:01:59.2]} 20... Qxh6 {[%clk 0:01:47]} 21.
Qc1 {[%clk 0:01:58.6]} 21... Qxc1 {[%clk 0:01:25.7]} 22. Rxc1 {[%clk 0:01:57.2]}
22... Bf5 {[%clk 0:01:26.6]} 23. c5 {[%clk 0:01:43.3]} 23... Bxe4 {[%clk
0:01:25]} 24. fxe4 {[%clk 0:01:43.4]} 24... Rf4 {[%clk 0:01:23.7]} 25. Rc4
{[%clk 0:01:37.3]} 25... b5 {[%clk 0:00:58.5]} 26. cxb6 {[%clk 0:01:36.3]} 26...
cxb6 {[%clk 0:00:58.8]} 27. b5 {[%clk 0:01:31.4]} 27... h5 {[%clk 0:00:44.7]}
28. g3 {[%clk 0:01:27]} 28... Rf3 {[%clk 0:00:37.6]} 29. Rc6 {[%clk 0:01:26.4]}
29... Re3 {[%clk 0:00:34.1]} 30. Rxd6 {[%clk 0:01:23.4]} 30... Kf7 {[%clk
0:00:31.2]} 31. Rxb6 {[%clk 0:01:21.7]} 31... Rxe4 {[%clk 0:00:31.5]} 32. Rb7+
{[%clk 0:01:21.4]} 32... Kf6 {[%clk 0:00:30.8]} 33. d6 {[%clk 0:01:17.5]} 33...
Ke6 {[%clk 0:00:28.8]} 34. d7 {[%clk 0:01:16.6]} 34... Ke7 {[%clk 0:00:28.5]}
35. Kf2 {[%clk 0:01:15.6]} 35... g5 {[%clk 0:00:14.2]} 36. Kf3 {[%clk
0:01:13.5]} 36... Re1 {[%clk 0:00:14.3]} 37. b6 {[%clk 0:01:08.3]} 37... g4+
{[%clk 0:00:14.4]} 38. Kf2 {[%clk 0:01:08.2]} 38... Re4 {[%clk 0:00:15]} 39. Rc7
{[%clk 0:00:56.1]} 39... Kd8 {[%clk 0:00:15.3]} 40. b7 {[%clk 0:00:38.3]} 40...
Rb4 {[%clk 0:00:11.8]} 41. Rc8+ {[%clk 0:00:37.6]} 41... Kxd7 {[%clk 0:00:12.1]}
42. b8=Q {[%clk 0:00:36.6]} 42... Rxb8 {[%clk 0:00:09.6]} 43. Rxb8 {[%clk
0:00:36.6]} 1-0

[Event "*** Titled Tuesday Blitz"]
[Site "Chess.com"]
[Date "2021.04.20"]
[Round "3"]
[White "Iskusnyh"]
[Black "KuzubovYuriy"]
[Result "0-1"]
[WhiteElo "2635"]
[BlackElo "2853"]
[TimeControl "180+1"]
[EndTime "10:27:14 PDT"]
[Termination "KuzubovYuriy won by resignation"]

1. d4 {[%clk 0:03:00.9]} 1... Nf6 {[%clk 0:02:59.2]} 2. c4 {[%clk 0:03:00.1]}
2... e6 {[%clk 0:02:59.6]} 3. Nc3 {[%clk 0:02:59.7]} 3... Bb4 {[%clk 0:02:59.5]}
4. e3 {[%clk 0:02:59.5]} 4... O-O {[%clk 0:02:59]} 5. Bd2 {[%clk 0:02:59.1]}
5... d5 {[%clk 0:02:53.9]} 6. Nf3 {[%clk 0:02:57.8]} 6... Re8 {[%clk 0:02:50]}
7. a3 {[%clk 0:02:43.5]} 7... Bf8 {[%clk 0:02:49.4]} 8. Bd3 {[%clk 0:02:41.3]}
8... Nbd7 {[%clk 0:02:48.7]} 9. O-O {[%clk 0:02:38.1]} 9... a6 {[%clk
0:02:42.3]} 10. Qc2 {[%clk 0:02:12.8]} 10... dxc4 {[%clk 0:02:34.1]} 11. Bxc4
{[%clk 0:02:12.8]} 11... b5 {[%clk 0:02:34.8]} 12. Bd3 {[%clk 0:02:11.6]} 12...
c5 {[%clk 0:02:31.2]} 13. dxc5 {[%clk 0:01:28.1]} 13... Nxc5 {[%clk 0:02:27.5]}
14. Be2 {[%clk 0:01:26.7]} 14... Bb7 {[%clk 0:02:26.8]} 15. Rfd1 {[%clk
0:01:23.3]} 15... Rc8 {[%clk 0:02:26.2]} 16. Be1 {[%clk 0:01:15.4]} 16... Qb6
{[%clk 0:02:24.2]} 17. b4 {[%clk 0:01:09.1]} 17... Nce4 {[%clk 0:02:13.1]} 18.
Qb2 {[%clk 0:01:07.7]} 18... Qa7 {[%clk 0:01:41.4]} 19. Rac1 {[%clk 0:01:01.1]}
19... Qa8 {[%clk 0:01:37.5]} 20. Nxe4 {[%clk 0:00:53.6]} 20... Nxe4 {[%clk
0:01:35.8]} 21. Nd4 {[%clk 0:00:40.2]} 21... Nd6 {[%clk 0:01:23.3]} 22. Bf3
{[%clk 0:00:23.4]} 22... Nc4 {[%clk 0:01:17.1]} 23. Qb3 {[%clk 0:00:23.8]} 23...
e5 {[%clk 0:01:12.4]} 24. Bxb7 {[%clk 0:00:22.9]} 24... Qxb7 {[%clk 0:01:13.3]}
25. Nf3 {[%clk 0:00:23.3]} 25... h6 {[%clk 0:01:10.8]} 26. Bc3 {[%clk
0:00:22.9]} 26... Re6 {[%clk 0:01:07.2]} 27. Ba1 {[%clk 0:00:17.4]} 27... Rg6
{[%clk 0:01:05.3]} 28. Kh1 {[%clk 0:00:16.6]} 28... Rcc6 {[%clk 0:01:01.8]} 29.
Qd3 {[%clk 0:00:16.1]} 29... Rxg2 {[%clk 0:00:57.4]} 30. Kxg2 {[%clk 0:00:13.6]}
30... Rg6+ {[%clk 0:00:57.4]} 31. Qxg6 {[%clk 0:00:13.9]} 31... fxg6 {[%clk
0:00:57.3]} 32. Rd8 {[%clk 0:00:12.8]} 32... Qe4 {[%clk 0:00:38.8]} 33. h3
{[%clk 0:00:12.3]} 33... Qf5 {[%clk 0:00:38.6]} 34. Rcd1 {[%clk 0:00:11]} 34...
Kh7 {[%clk 0:00:38.3]} 35. R1d3 {[%clk 0:00:03.9]} 35... e4 {[%clk 0:00:33.4]}
0-1

[Event "*** Titled Tuesday Blitz"]
[Site "Chess.com"]
[Date "2021.04.20"]
[Round "3"]
[White "MateusViageiro"]
[Black "gisela_roque"]
[Result "1-0"]
[WhiteElo "2295"]
[BlackElo "1797"]
[TimeControl "180+1"]
[EndTime "10:27:15 PDT"]
[Termination "MateusViageiro won on time"]

1. e4 {[%clk 0:03:00.9]} 1... e6 {[%clk 0:02:58.7]} 2. Qe2 {[%clk 0:03:00.4]}
2... d5 {[%clk 0:02:57.3]} 3. exd5 {[%clk 0:02:57.2]} 3... Qxd5 {[%clk 0:02:57]}
4. Nc3 {[%clk 0:02:57.7]} 4... Qd8 {[%clk 0:02:56.8]} 5. d4 {[%clk 0:02:58]}
5... Nf6 {[%clk 0:02:56.8]} 6. Nf3 {[%clk 0:02:58.4]} 6... Be7 {[%clk
0:02:50.2]} 7. Bg5 {[%clk 0:02:58.5]} 7... O-O {[%clk 0:02:49.5]} 8. O-O-O
{[%clk 0:02:58.3]} 8... c6 {[%clk 0:02:33.3]} 9. Ne5 {[%clk 0:02:56]} 9... Nd5
{[%clk 0:02:26.5]} 10. Bd2 {[%clk 0:02:54.7]} 10... a5 {[%clk 0:02:16.8]} 11. f4
{[%clk 0:02:53.2]} 11... b5 {[%clk 0:02:13.7]} 12. Ne4 {[%clk 0:02:48.8]} 12...
b4 {[%clk 0:02:06.4]} 13. h4 {[%clk 0:02:47]} 13... Ba6 {[%clk 0:02:01.9]} 14.
Qh5 {[%clk 0:02:43.7]} 14... Bxf1 {[%clk 0:01:56.4]} 15. Rdxf1 {[%clk
0:02:38.8]} 15... Nf6 {[%clk 0:01:53.2]} 16. Nxf6+ {[%clk 0:02:35.1]} 16... Bxf6
{[%clk 0:01:53.3]} 17. Be3 {[%clk 0:02:32.7]} 17... Qd5 {[%clk 0:01:48.3]} 18.
Kb1 {[%clk 0:02:29.1]} 18... a4 {[%clk 0:01:45.2]} 19. Qf3 {[%clk 0:02:14]}
19... Bxe5 {[%clk 0:01:26.5]} 20. Qxd5 {[%clk 0:02:02.9]} 20... cxd5 {[%clk
0:01:24]} 21. dxe5 {[%clk 0:02:01.6]} 21... Nc6 {[%clk 0:01:22.5]} 22. g4 {[%clk
0:01:58.7]} 22... Rfd8 {[%clk 0:01:17.1]} 23. h5 {[%clk 0:01:55.6]} 23... Rac8
{[%clk 0:01:13.5]} 24. Bd2 {[%clk 0:01:48]} 24... d4 {[%clk 0:01:12]} 25. Rh3
{[%clk 0:01:45.5]} 25... Rd5 {[%clk 0:01:07.3]} 26. a3 {[%clk 0:01:43.3]} 26...
bxa3 {[%clk 0:01:01.8]} 27. Rxa3 {[%clk 0:01:42.4]} 27... Ra8 {[%clk 0:00:44.7]}
28. Rff3 {[%clk 0:01:33.7]} 28... Rb5 {[%clk 0:00:44.3]} 29. Kc1 {[%clk
0:01:29.1]} 29... Ne7 {[%clk 0:00:43]} 30. b3 {[%clk 0:01:26.1]} 30... Nd5
{[%clk 0:00:38.9]} 31. Rxa4 {[%clk 0:01:25.3]} 31... Rxa4 {[%clk 0:00:38.1]} 32.
bxa4 {[%clk 0:01:25.1]} 32... Rb8 {[%clk 0:00:24.8]} 33. Ra3 {[%clk 0:01:21.3]}
33... Kf8 {[%clk 0:00:23.2]} 34. a5 {[%clk 0:01:19.6]} 34... Ke8 {[%clk
0:00:22.5]} 35. Ra4 {[%clk 0:01:19.5]} 35... d3 {[%clk 0:00:17.7]} 36. cxd3
{[%clk 0:01:11]} 36... Rc8+ {[%clk 0:00:14.8]} 37. Kd1 {[%clk 0:01:10.2]} 37...
Kd7 {[%clk 0:00:10.3]} 38. Ke2 {[%clk 0:01:07.2]} 38... Ra8 {[%clk 0:00:10.1]}
39. Kf3 {[%clk 0:01:06.2]} 39... Kc6 {[%clk 0:00:10.2]} 40. Ke4 {[%clk 0:01:06]}
40... Kb5 {[%clk 0:00:10.3]} 41. Ra1 {[%clk 0:01:05]} 41... Kc6 {[%clk
0:00:04.1]} 42. Rc1+ {[%clk 0:01:04]} 42... Kb5 {[%clk 0:00:04.1]} 43. Rb1+
{[%clk 0:01:04.1]} 43... Ka4 {[%clk 0:00:03.4]} 44. Rb7 {[%clk 0:01:03.4]} 1-0

[Event "*** Titled Tuesday Blitz"]
[Site "Chess.com"]
[Date "2021.04.20"]
[Round "3"]
[White "Borsuk_Konstantin"]
[Black "erdni1993"]
[Result "1-0"]
[WhiteElo "2695"]
[BlackElo "2421"]
[TimeControl "180+1"]
[EndTime "10:27:19 PDT"]
[Termination "Borsuk_Konstantin won on time"]

1. d4 {[%clk 0:03:00.9]} 1... Nf6 {[%clk 0:02:59.4]} 2. c4 {[%clk 0:03:00.9]}
2... e6 {[%clk 0:03:00.3]} 3. Nc3 {[%clk 0:03:00.2]} 3... c5 {[%clk 0:03:00.8]}
4. d5 {[%clk 0:02:59.8]} 4... exd5 {[%clk 0:03:01.7]} 5. cxd5 {[%clk 0:03:00.3]}
5... Bd6 {[%clk 0:03:02.2]} 6. Nf3 {[%clk 0:03:00.4]} 6... O-O {[%clk
0:03:02.5]} 7. g3 {[%clk 0:03:01]} 7... h6 {[%clk 0:03:01.7]} 8. Bg2 {[%clk
0:03:01.5]} 8... Re8 {[%clk 0:03:02.1]} 9. O-O {[%clk 0:03:01.8]} 9... a6 {[%clk
0:03:02.6]} 10. a4 {[%clk 0:03:00.8]} 10... Bc7 {[%clk 0:03:02.9]} 11. Nd2
{[%clk 0:02:56.4]} 11... d6 {[%clk 0:03:02.4]} 12. Rb1 {[%clk 0:02:49.2]} 12...
Nbd7 {[%clk 0:03:02.9]} 13. Nc4 {[%clk 0:02:42.2]} 13... Rb8 {[%clk 0:03:02]}
14. b4 {[%clk 0:02:40.4]} 14... b5 {[%clk 0:02:56]} 15. axb5 {[%clk 0:02:38.9]}
15... axb5 {[%clk 0:02:56.9]} 16. Nd2 {[%clk 0:02:26.2]} 16... cxb4 {[%clk
0:02:55.6]} 17. Na2 {[%clk 0:02:25.6]} 17... Nc5 {[%clk 0:02:27.2]} 18. Nxb4
{[%clk 0:02:22.7]} 18... Bb7 {[%clk 0:02:23.8]} 19. Nb3 {[%clk 0:02:17.9]} 19...
Nxb3 {[%clk 0:02:18.3]} 20. Rxb3 {[%clk 0:02:17.4]} 20... Bb6 {[%clk 0:02:12.1]}
21. Qd3 {[%clk 0:02:14.2]} 21... Bc5 {[%clk 0:02:06.8]} 22. Bb2 {[%clk
0:02:08.6]} 22... Nd7 {[%clk 0:01:52]} 23. Nc6 {[%clk 0:02:02.1]} 23... Bxc6
{[%clk 0:01:51.3]} 24. dxc6 {[%clk 0:02:02.4]} 24... Ne5 {[%clk 0:01:48]} 25.
Bxe5 {[%clk 0:02:00.6]} 25... Rxe5 {[%clk 0:01:47.5]} 26. e3 {[%clk 0:01:52.9]}
26... Qb6 {[%clk 0:01:35.5]} 27. Ra1 {[%clk 0:01:45.1]} 27... d5 {[%clk
0:01:24.2]} 28. Bxd5 {[%clk 0:01:28.5]} 28... Rd8 {[%clk 0:01:23.5]} 29. e4
{[%clk 0:01:07.5]} 29... Bxf2+ {[%clk 0:01:17.7]} 30. Kg2 {[%clk 0:01:07.2]}
30... b4 {[%clk 0:00:57.9]} 31. Qf3 {[%clk 0:00:56.2]} 31... Bd4 {[%clk
0:00:31.7]} 32. Qxf7+ {[%clk 0:00:54.5]} 32... Kh8 {[%clk 0:00:27.9]} 33. Rf1
{[%clk 0:00:54.8]} 33... Qa6 {[%clk 0:00:17.8]} 34. Rbf3 {[%clk 0:00:50.7]}
34... Qe2+ {[%clk 0:00:17.1]} 35. Kh3 {[%clk 0:00:50.8]} 35... Ree8 {[%clk
0:00:10.5]} 36. c7 {[%clk 0:00:40.2]} 36... Rc8 {[%clk 0:00:10.4]} 37. Be6
{[%clk 0:00:40.3]} 37... Qxe4 {[%clk 0:00:03.7]} 38. Bxc8 {[%clk 0:00:38.8]}
38... Rxc8 {[%clk 0:00:04.6]} 39. Qf8+ {[%clk 0:00:34.2]} 1-0

[Event "*** Titled Tuesday Blitz"]
[Site "Chess.com"]
[Date "2021.04.20"]
[Round "3"]
[White "AndrewMaco"]
[Black "The_filthy"]
[Result "1/2-1/2"]
[WhiteElo "2667"]
[BlackElo "2427"]
[TimeControl "180+1"]
[EndTime "10:27:19 PDT"]
[Termination "Game drawn by repetition"]

1. e4 {[%clk 0:02:47.8]} 1... e6 {[%clk 0:02:59.9]} 2. d3 {[%clk 0:02:37.2]}
2... c5 {[%clk 0:02:59.3]} 3. Nd2 {[%clk 0:02:38.1]} 3... Nc6 {[%clk 0:02:59.3]}
4. g3 {[%clk 0:02:39]} 4... d6 {[%clk 0:02:59.7]} 5. Bg2 {[%clk 0:02:38.9]} 5...
g6 {[%clk 0:03:00.2]} 6. Ngf3 {[%clk 0:02:39.8]} 6... Bg7 {[%clk 0:03:00.5]} 7.
O-O {[%clk 0:02:40.7]} 7... Nge7 {[%clk 0:03:00.9]} 8. Re1 {[%clk 0:02:27]} 8...
O-O {[%clk 0:02:53.3]} 9. c3 {[%clk 0:02:27.2]} 9... e5 {[%clk 0:02:51.4]} 10.
h4 {[%clk 0:02:21.6]} 10... h6 {[%clk 0:02:49]} 11. Nc4 {[%clk 0:02:16.6]} 11...
b5 {[%clk 0:02:39.2]} 12. Ne3 {[%clk 0:02:16.3]} 12... Kh7 {[%clk 0:02:24.3]}
13. a4 {[%clk 0:02:09]} 13... b4 {[%clk 0:02:15.7]} 14. Nc4 {[%clk 0:02:04.3]}
14... Be6 {[%clk 0:02:03.1]} 15. Nfd2 {[%clk 0:01:32.1]} 15... Rb8 {[%clk
0:01:52.2]} 16. Nf1 {[%clk 0:01:30.4]} 16... Na5 {[%clk 0:01:47.6]} 17. Nfe3
{[%clk 0:01:27.6]} 17... f5 {[%clk 0:01:37.1]} 18. h5 {[%clk 0:01:27.2]} 18...
f4 {[%clk 0:01:33.2]} 19. hxg6+ {[%clk 0:01:25.6]} 19... Nxg6 {[%clk 0:01:33.1]}
20. Nf5 {[%clk 0:01:24.7]} 20... Bxf5 {[%clk 0:00:56.3]} 21. exf5 {[%clk
0:01:23.8]} 21... Rxf5 {[%clk 0:00:56.6]} 22. Be4 {[%clk 0:01:21.5]} 22... Rg5
{[%clk 0:00:56.8]} 23. Nxa5 {[%clk 0:01:21.6]} 23... Qxa5 {[%clk 0:00:55.8]} 24.
Kh2 {[%clk 0:01:21.9]} 24... bxc3 {[%clk 0:00:41]} 25. bxc3 {[%clk 0:01:16.3]}
25... Qxc3 {[%clk 0:00:41]} 26. Bd2 {[%clk 0:01:12.7]} 26... Qd4 {[%clk
0:00:40.8]} 27. Qf3 {[%clk 0:01:10.6]} 27... Rb2 {[%clk 0:00:39.1]} 28. Re2
{[%clk 0:01:07.7]} 28... Rxd2 {[%clk 0:00:38]} 29. Rxd2 {[%clk 0:01:06.9]} 29...
Qxa1 {[%clk 0:00:38.1]} 30. Rd1 {[%clk 0:01:02.7]} 30... Qd4 {[%clk 0:00:35.3]}
31. Rg1 {[%clk 0:01:02.4]} 31... fxg3+ {[%clk 0:00:20.8]} 32. Rxg3 {[%clk
0:01:02]} 32... d5 {[%clk 0:00:12.2]} 33. Bxg6+ {[%clk 0:00:58.8]} 33... Kxg6
{[%clk 0:00:10.1]} 34. a5 {[%clk 0:00:50.3]} 34... e4 {[%clk 0:00:05.8]} 35.
dxe4 {[%clk 0:00:48.2]} 35... Be5 {[%clk 0:00:04.8]} 36. Qf8 {[%clk 0:00:43.7]}
36... Bxg3+ {[%clk 0:00:03.4]} 37. fxg3 {[%clk 0:00:44.6]} 37... Qxe4 {[%clk
0:00:03.1]} 38. Qg8+ {[%clk 0:00:43.5]} 38... Kh5 {[%clk 0:00:02.8]} 39. Qf7+
{[%clk 0:00:43.9]} 39... Qg6 {[%clk 0:00:02.7]} 40. Qf3+ {[%clk 0:00:43.8]}
40... Rg4 {[%clk 0:00:03.2]} 41. Qxd5+ {[%clk 0:00:44.2]} 41... Qg5 {[%clk
0:00:03.5]} 42. Qf7+ {[%clk 0:00:44.2]} 42... Qg6 {[%clk 0:00:04]} 43. Qd5+
{[%clk 0:00:44.5]} 43... Qg5 {[%clk 0:00:03.1]} 44. Qf7+ {[%clk 0:00:43.5]}
44... Qg6 {[%clk 0:00:03.1]} 45. Qd5+ {[%clk 0:00:42]} 1/2-1/2

[Event "*** Titled Tuesday Blitz"]
[Site "Chess.com"]
[Date "2021.04.20"]
[Round "3"]
[White "vanyakuba"]
[Black "Aradhya2000"]
[Result "0-1"]
[WhiteElo "2395"]
[BlackElo "2601"]
[TimeControl "180+1"]
[EndTime "10:27:19 PDT"]
[Termination "Aradhya2000 won on time"]

1. e4 {[%clk 0:03:00.9]} 1... e5 {[%clk 0:02:59.8]} 2. Nf3 {[%clk 0:03:00.5]}
2... Nc6 {[%clk 0:03:00.1]} 3. Bb5 {[%clk 0:03:00.5]} 3... a6 {[%clk 0:03:00]}
4. Ba4 {[%clk 0:03:00.6]} 4... Nf6 {[%clk 0:02:59.6]} 5. d3 {[%clk 0:03:01]}
5... b5 {[%clk 0:02:58.3]} 6. Bb3 {[%clk 0:03:00.9]} 6... Bc5 {[%clk 0:02:58.9]}
7. c3 {[%clk 0:03:01]} 7... O-O {[%clk 0:02:58.7]} 8. Nbd2 {[%clk 0:03:01]} 8...
d5 {[%clk 0:02:55]} 9. Qe2 {[%clk 0:02:56.3]} 9... Be6 {[%clk 0:02:53.4]} 10.
O-O {[%clk 0:02:50.6]} 10... Re8 {[%clk 0:02:53]} 11. Re1 {[%clk 0:02:45.8]}
11... Qd7 {[%clk 0:02:49.8]} 12. Nf1 {[%clk 0:02:43.9]} 12... h6 {[%clk
0:02:35.6]} 13. h3 {[%clk 0:02:14.6]} 13... Rad8 {[%clk 0:02:33.3]} 14. Ng3
{[%clk 0:02:09.7]} 14... d4 {[%clk 0:01:24.9]} 15. Bxe6 {[%clk 0:01:24.1]} 15...
fxe6 {[%clk 0:01:16.9]} 16. cxd4 {[%clk 0:01:07.6]} 16... Nxd4 {[%clk
0:01:15.3]} 17. Nxd4 {[%clk 0:01:07.6]} 17... Bxd4 {[%clk 0:01:14.8]} 18. Be3
{[%clk 0:00:34.3]} 18... Bxe3 {[%clk 0:01:12.7]} 19. Qxe3 {[%clk 0:00:34.8]}
19... Qxd3 {[%clk 0:01:13.2]} 20. Qa7 {[%clk 0:00:31.9]} 20... Qd6 {[%clk
0:01:04.7]} 21. Rac1 {[%clk 0:00:26.6]} 21... Re7 {[%clk 0:00:56.9]} 22. Nf1
{[%clk 0:00:16.1]} 22... Qd4 {[%clk 0:00:42.9]} 23. Qb7 {[%clk 0:00:11.9]} 23...
Rdd7 {[%clk 0:00:28.5]} 24. Ne3 {[%clk 0:00:11.5]} 24... Nxe4 {[%clk 0:00:26.1]}
25. Red1 {[%clk 0:00:10]} 25... Nd2 {[%clk 0:00:26]} 26. Rc2 {[%clk 0:00:06.5]}
26... c5 {[%clk 0:00:15]} 27. Rcxd2 {[%clk 0:00:02.4]} 27... Rxb7 {[%clk
0:00:14.5]} 28. Rxd4 {[%clk 0:00:01.6]} 28... exd4 {[%clk 0:00:15.4]} 29. Ng4
{[%clk 0:00:01.4]} 29... e5 {[%clk 0:00:14]} 0-1